{"text_format":"1","workbook":"xlsx","n_sheets":3,"sheets":["Отчёт","ОБК","СВОДНЫЙ"],"not_rendered":{"charts":0,"images":0,"macros":1,"external_links":0,"defined_names":5,"comments":0,"pivot_tables":0},"unopened":[],"bounds":{"document_bytes":16777216,"sheet_cells":100000,"rows_first":2000,"rows_last":500,"rows_between":2000,"halvings":0,"cell_chars":16384,"cell_head_chars":4096},"cells_cut":0,"cells_raw":0,"read":"whole","date_system":"1900"}

{"sheet":"Отчёт","index":0,"n_rows":79,"n_cols":19,"rows_kept":79,"cut":false,"hidden":false,"merged":[]}
["МесяцПродаж (вкл.бюджет, экстрапол)"]
[]
["SO ОтделСбыт"]
["SO РайонСбыт"]
["Ассортимент"]
["Вид материала"]
["Вид фактуры"]
["ГлавнГруппаАртик"]
["Группа артикулов"]
["Заказчик"]
["Иерархия продуктов"]
["КалендГод/Квартал"]
["КалендГод/Неделя"]
["Календарный день"]
["Материал"]
["ПолучМтрОтделСбыт","8410 Регион-Поволжье"]
["ПолучМтрРайонСбыт"]
["Получатель материала"]
["Сектор"]
["Врем-Колонк: СравненТекущ и Бюджет, МТД","ФЕВ 2014"]
["ПростПоказател","Валовый оборот","ТАБЛИЦА СОКРАЩЕНА ПО СТОЛБЦАМ И СТРОКАМ"]
[]
[null,"ФЕВ 2014"]
[null,"Валовый оборот"]
["Получатель материала","0840650200 Ф-л ООО \"МЕТРО Кэш энд Керри\" -","0840650779 Ф-л ООО \"МЕТРО Кэш энд Керри\" -","0840651200 ООО \"АШАН\" -","0840651210 ООО \"МЕТРО Кэш энд Керри\" -","0840651214 Ф-л ООО \"МЕТРО Кэш энд Керри\" -","0840651217 Ф-л ООО \"МЕТРО Кэш энд Керри\" -","0840651220 Ф-л ООО \"МЕТРО Кэш энд Керри\" -","0840700178 ОАО \"Седьмой Континент\" -","0840700383 Ф-л ООО \"МЕТРО Кэш энд Керри\" -","0840700413 ООО \"Сладкая жизнь плюс\"","0840700513 ЗАО \"Торговый дом \"ПЕРЕКРЕСТОК\" -","0840700529 ООО \"Зельгрос\" -","0840700556 ЗАО \"Торговый дом \"ПЕРЕКРЕСТОК\" -","0840700557 ЗАО \"Торговый дом \"ПЕРЕКРЕСТОК\" -","0840700646 ЗАО \"Торговый дом \"ПЕРЕКРЕСТОК\" -","0840700685 ЗАО \"Торговый дом \"ПЕРЕКРЕСТОК\" -","0840700693 ЗАО \"Торговый дом \"ПЕРЕКРЕСТОК\" -","Общий результат"]
["Иерархия продуктов","RUB","RUB","RUB","RUB","RUB","RUB","RUB","RUB","RUB","RUB","RUB","RUB","RUB","RUB","RUB","RUB","RUB","RUB"]
["          Общий результат"]
["   Разрыхлитель теста"]
["              1-84-001001 Разрыхлитель теста,10г",1,5,9,null,9]
["              1-84-001199 Разрыхлитель теста, 10г",2,4,8,null,3]
["              1-84-071150 Разрыхлитель с шафраном, 12 г.х 2",3,3,7,null,4]
["              1-84-071734 Разрыхлитель теста,10гх5шт.Юнит",4,2,6,null,5]
["              1-84-091150 Разрыхлитель с шафраном, 12г",5,1,5,null,6]
["   Дрожжи"]
["              1-84-001081 Дрожжи сух.мгновеннодейств. 90 шт.",null,null,5,6,5]
["              1-84-071080 Дрожжи хлебопекарные сухие,7гх5шт.",null,null,4,7]
["   Ванильный сахар"]
["              1-84-001010 Сахар Ванильный 8г(100шт)",2]
["              1-84-001208 Сахар ванильный,8г 60x5",3]
["              1-84-001210 Сахар с натуральной Ванилью 15г*2шт",4]
["              1-84-010100 Сахар с натуральной ванилью 15г",5]
["              1-84-071111 Коричневый сахар с нат. ванилью,40г*2"]
["              1-84-071733 Сахар ванильный,8гх5 шт.Юнит"]
["   Желе для торта"]
["              1-84-001004 Желе для торта бесцветное,8г"]
["              1-84-001005 Желе для торта красное,8г"]
["              1-84-071104 Желе для торта бесцветное,8гх5шт."]
["   Загуститель сливок"]
["              1-84-001002 Загуститель для сливок,8г"]
["              1-84-077352 Загуститель для сливок, 8г.х 5 (50)"]
["   Какао для выпечки"]
["              1-84-071143 Какао-порошок, 50 г.х 2"]
["              1-84-091143 Какао-порошок, 50г"]
["   Сахар с корицей"]
["              1-84-001011 Сахар с корицей 40г"]
["              1-84-010101 Коричневый сахар с натур. корицей, 40г."]
["              1-84-071011 Сахар с корицей 40 г. х 2 шт."]
["   Взбитые сливки"]
["              1-84-001003 Смесь для взбитых сливок  48г"]
["   Творопыш"]
["              1-84-002003 Смесь \"Творопыш\",60г"]
["              1-84-072003 Смесь \"Творопыш\",60гх5шт."]
["   Крем для торта"]
["              1-84-002001 Крем для торта  \"Ванильный\",50г"]
["              1-84-002002 Крем для торта \"Шоколадный\",55г"]
["              1-84-072001 Крем для торта ванильный,50гх5шт."]
["   Аромат стандартный"]
["              1-01-141800 Ароматизатор миндаль 4х2мл"]
["              1-01-142800 Ароматизатор ром 4х2мл"]
["              1-01-144800 Ароматизатор сливочная ваниль 4х2мл"]
["   Желатин молотый"]
["              1-84-001006 Желатин пищевой,10г"]
["              1-84-001013 Желатин 30г"]
["              1-84-001014 Желатин пищевой,10г"]
["              1-84-001213 Желатин 30гх2"]
["              1-84-077740 Желатин пищевой,10гх5шт Юнит"]
["   Сода пищевая"]
["              1-84-001057 Сода пищевая 5г"]
["              1-84-071057 Сода пищевая, 5г*5"]

{"sheet":"ОБК","index":1,"n_rows":192,"n_cols":7,"rows_kept":192,"cut":false,"hidden":false,"merged":[]}
["ОБЩАЯ БАЗА КЛИЕНТОВ (РЕГИОН)"]
["SAP код","Наименование, адрес","Город","Сопоставление по адресу\n(Формула)","Выборка из \"Город\"\n(Кнопка №1)","Присвоенный регион (указывается в ручную)","Регион\n(Кнопка №2)"]
[840621071,"СП-ЛОГИСТИ, г.Йошкар-Ола, Шумелева ул. д.1","Г.ЙОШКАР-ОЛА",{"$f":"IFERROR(VLOOKUP(C3,$E$3:$F$69,2,FALSE),\" \")","v":"Нижний Новгород"},"Г.ЙОШКАР-ОЛА","Нижний Новгород","Нижний Новгород"]
[840621073,"ПДК, г.Чебоксары, Складской пр-д д.16","Г.ЧЕБОКСАРЫ","Нижний Новгород","Г.ЧЕБОКСАРЫ","Нижний Новгород","Ярославль"]
[840621215,"ВКТ, г.Нижний Новгород, Геологов ул. д.2В","Г.НИЖНИЙ НОВГОРОД","Нижний Новгород","Г.НИЖНИЙ НОВГОРОД","Нижний Новгород","Иваново"]
[840621248,"ГЕК-ПОВОЛЖ, г.Нижний Новгород, Московское шоссе д.213 А","Г.НИЖНИЙ НОВГОРОД","Нижний Новгород","Г.ЯРОСЛАВЛЬ","Ярославль","Казань"]
[840621251,"СВИТ ЛАЙФ, г.Нижний Новгород, Комсомольское шоссе д.4","Г.НИЖНИЙ НОВГОРОД","Нижний Новгород","Г.ИВАНОВО","Иваново","Ижевск"]
[840621280,"СЛАДКАЯ ЖИ, г.Нижний Новгород, Сергея Есенина ул. д.10","Г.НИЖНИЙ НОВГОРОД","Нижний Новгород","Г.КАЗАНЬ","Казань","Рязань"]
[840621304,"ЦАРИЦЫНО, г.Ярославль, Московский пр-т д.143","Г.ЯРОСЛАВЛЬ","Ярославль","Г.ЧАЙКОВСКИЙ","Ижевск","Владимир"]
[840621317,"АРТИС, г.Иваново, Строителей пр-т д.35","Г.ИВАНОВО","Иваново","РЕСПУБЛИКА ТАТАРСТАН, Г.К","Казань","Кострома"]
[840621356,"МОЛОЧНЫЕ П, г.Казань, Сибирский тракт ул. д.34","Г.КАЗАНЬ","Казань","Г.НАБЕРЕЖНЫЕ ЧЕЛНЫ,","Казань"]
[840621576,"ТУГАНЦЕВ, г.Казань, Амирхана ул. д.27 кв.61","Г.КАЗАНЬ","Казань","Г.РЯЗАНЬ","Рязань"]
[840621611,"СВИТ ЛАЙФ, г.Нижний Новгород, Комсомольское шоссе д.4","Г.НИЖНИЙ НОВГОРОД","Нижний Новгород","Г.ВЛАДИМИР","Владимир"]
[840621640,"ВОЛКОВА О., г.Чайковский, проспект Победы, д.28 кв.109","Г.ЧАЙКОВСКИЙ","Ижевск","Г.ГУСЬ ХРУСТАЛЬНЫЙ","Владимир"]
[840621646,"ТАНДЕМ, г.Нижний Новгород, Большая Покровская ул. д.10","Г.НИЖНИЙ НОВГОРОД","Нижний Новгород","Г. КАЗАНЬ,","Казань"]
[840621718,"ТЭМЛЕ+, Республика Татарстан, г.Казань, Серова ул., д.7,оф.201","РЕСПУБЛИКА ТАТАРСТАН, Г.К","Казань","Г.РЯЗАНЬ,","Рязань"]
[840621829,"ЗАЙЦЕВА И., г.Нижний Новгород, Гагарина пр. д.38, кв.2","Г.НИЖНИЙ НОВГОРОД","Нижний Новгород","РФ, НИЖЕГОРОДСКАЯ ОБЛ., К","Нижний Новгород"]
[840621851,"АЗБУКА ВКУ, г.Нижний Новгород, Гордеевская ул. д.1н","Г.НИЖНИЙ НОВГОРОД","Нижний Новгород","Г.НИЖНИЙ НОВГОРОД,","Нижний Новгород"]
[840621887,"СВИТ ЛАЙФ, г.Нижний Новгород, Комсомольское шоссе д.4","Г.НИЖНИЙ НОВГОРОД","Нижний Новгород","ЯРОСЛАВСКАЯ ОБЛ., ЯРОСЛАВ","Ярославль"]
[840621959,"МАРТА КАЗА, г.Казань, Мазита Гафури ул. д.46","Г.КАЗАНЬ","Казань","Г.ЯРОСЛАВЛЬ,","Ярославль"]
[840650200,"МЕТРО, г.Набережные Челны,, Чулман пр-т, д.33","Г.НАБЕРЕЖНЫЕ ЧЕЛНЫ,","Казань","Г.КАЗАНЬ,","Казань"]
[840650528,"ЭЛЕКСКОР, г.Рязань, Заводской пр-д д.1","Г.РЯЗАНЬ","Рязань","Г. НИЖНИЙ НОВГОРОД,","Нижний Новгород"]
[840650536,"ЭЛЕКСКОР, г.Казань, Сибирский тракт д.17","Г.КАЗАНЬ","Казань","КСТОВСКИЙ Р-Н, П.ЖДАНОВСК","Нижний Новгород"]
[840650537,"ЭЛЕКСКОР, г.Казань, Челюскина ул. д.31","Г.КАЗАНЬ","Казань","НИЖНИЙ НОВГОРОД","Нижний Новгород"]
[840650538,"ЭЛЕКСКОР, г.Казань, Гагарина ул. д.22","Г.КАЗАНЬ","Казань","ЯРОСЛАВСКАЯ ОБЛ., Г.ЯРОСЛ","Ярославль"]
[840650539,"ЭЛЕКСКОР, г.Казань, Декабристов ул. д.8","Г.КАЗАНЬ","Казань","Г.ГУСЬ-ХРУСТАЛЬНЫЙ","Владимир"]
[840650540,"ЭЛЕКСКОР, г.Казань, Мира пр-т д.33","Г.КАЗАНЬ","Казань","ВЛАДИМИРСКАЯ ОБЛ., Г.ВЛАД","Владимир"]
[840650541,"ЭЛЕКСКОР, г.Казань, Гвардейская ул. д.33","Г.КАЗАНЬ","Казань","ИВАНОВСКАЯ ОБЛ., Г.ИВАНОВ","Иваново"]
[840650542,"ЭЛЕКСКОР, г.Казань, Глушко ул. д.27","Г.КАЗАНЬ","Казань","ВЛАДИМИРСКАЯ ОБЛ.,Г.ГУСЬ-","Владимир"]
[840650543,"ЭЛЕКСКОР, г.Казань, Саид-Галеева ул. д.6","Г.КАЗАНЬ","Казань","ИВАНОВСКАЯ ОБЛАСТЬ,","Иваново"]
[840650544,"ЭЛЕКСКОР, г.Казань, Ленинградская ул. д.32","Г.КАЗАНЬ","Казань","РЯЗАНСКАЯ ОБЛ., РЯЗАНСКИЙ","Рязань"]
[840650545,"ЭЛЕКСКОР, г.Казань, Завойского ул. д.3А","Г.КАЗАНЬ","Казань","РЯЗАНСКАЯ ОБЛ., Г.РЯЗАНЬ,","Рязань"]
[840650546,"ЭЛЕКСКОР, г.Йошкар-Ола, Чавайна б-р д.1","Г.ЙОШКАР-ОЛА","Нижний Новгород","Г.НИЖНИЙ НОВГОРОД, КАНАВИ","Нижний Новгород"]
[840650548,"ЭЛЕКСКОР, г.Владимир, Дворянская ул. д.10","Г.ВЛАДИМИР","Владимир","НИЖЕГОРОДСКАЯ ОБЛ., Г.ДЗЕ","Нижний Новгород"]
[840650549,"ЭЛЕКСКОР, г.Гусь Хрустальный, Инженерная ул. д.24","Г.ГУСЬ ХРУСТАЛЬНЫЙ",{"$f":"IFERROR(VLOOKUP(C35,$E$3:$F$69,2,FALSE),\" \")","v":"Владимир"},"Г.ИВАНОВО,","Иваново"]
[840650725,"ТАНДЕР, г.Иваново, ул. Станкостроителей д.1","Г.ИВАНОВО","Иваново","Г.ВЛАДИМИР,","Владимир"]
[840650753,"РЕАЛ, г. Казань,, Ямашева пр-т, д.46/33","Г. КАЗАНЬ,","Казань","Г.КОСТРОМА,","Кострома"]
[840650779,"МЕТРО, г.Рязань,, Московское шоссе, д.25","Г.РЯЗАНЬ,","Рязань","РЕСПУБЛИКА ТАТАРСТАН,Г.НА","Казань"]
[840650941,"ОМЕГА, г.Казань, Сибиpский тракт ул. д.34","Г.КАЗАНЬ","Казань","Г. ЯРОСЛАВЛЬ,","Ярославль"]
[840650942,"ОМЕГА, г.Казань, Ямашева пр-т д.51Б","Г.КАЗАНЬ","Казань","НИЖЕГОРОДСКАЯ ОБЛ.,КСТОВС","Нижний Новгород"]
[840651200,"АШАН, РФ, Нижегородская обл., Кстовский р, c. Федяково, \"МЕГА\" Семейный центр","РФ, НИЖЕГОРОДСКАЯ ОБЛ., К","Нижний Новгород","Г.ИЖЕВСК,","Ижевск"]
[840651210,"МЕТРО, г.Нижний Новгород,, Нартова ул., д.4А","Г.НИЖНИЙ НОВГОРОД,","Нижний Новгород","РЕСПУБЛИКА ТАТАРСТАН,Г.НИ","Казань"]
[840651212,"РЕАЛ, Ярославская обл., Ярославский р-н,, пос. Нагорный, Дорожная  ул., д.6а","ЯРОСЛАВСКАЯ ОБЛ., ЯРОСЛАВ","Ярославль","РЕСПУБЛИКА ТАТАРСТАН,Г.АЛ","Казань"]
[840651214,"МЕТРО, г.Нижний Новгород,, Мещерский б-р, д.3А","Г.НИЖНИЙ НОВГОРОД,","Нижний Новгород","РЕСПУБЛИКА ТАТАРСТАН, Г.А","Казань"]
[840651217,"МЕТРО, г.Ярославль,, Фрунзе пр-т, д.32","Г.ЯРОСЛАВЛЬ,","Ярославль","РЕСПУБЛИКА ТАТАРСТАН,НИЖН","Казань"]
[840651220,"МЕТРО, г.Казань,, Вахитова ул., д.4","Г.КАЗАНЬ,","Казань","РЕСПУБЛИКА МАРИЙ-ЭЛ,Г.ВОЛ","Нижний Новгород"]
[840700007,"РЕАЛ, г. Нижний Новгород,, Родионова ул., д.187в","Г. НИЖНИЙ НОВГОРОД,","Нижний Новгород","ИВАНОВСКАЯ ОБЛ., ИВАНОВО,","Иваново"]
[840700010,"САМОХВАЛ, Кстовский р-н, п.Ждановский, Школьная ул. д.51","КСТОВСКИЙ Р-Н, П.ЖДАНОВСК","Нижний Новгород","ВЛАДИМИРСКАЯ ОБЛ., Г.КОВР","Владимир"]
[840700043,"ВАСИЛИНЕНК, Нижний Новгород, ","НИЖНИЙ НОВГОРОД","Нижний Новгород","ЧУВАШСКАЯ РЕСПУБЛИКА, Г.Ч","Нижний Новгород"]
[840700082,"СМАК-НН, Нижний Новгород, ","НИЖНИЙ НОВГОРОД","Нижний Новгород","УДМУРТСКАЯ РЕСПУБЛИКА, Г.","Ижевск"]
[840700177,"СЕДЬМОЙ КО, г.Рязань,, Солотчинское шоссе, д.11","Г.РЯЗАНЬ,","Рязань","РЕСПУБЛИКА ТАТАРСТАН, Г.З","Казань"]
[840700178,"СЕДЬМОЙ КО, Ярославская обл., г.Ярославль,, Московский проспект, д.108","ЯРОСЛАВСКАЯ ОБЛ., Г.ЯРОСЛ","Ярославль","РОССИЯ, РЯЗАНСКАЯ ОБЛ., Г","Рязань"]
[840700185,"Т И К, г.Рязань, Зубковой д.17а","Г.РЯЗАНЬ","Рязань","ВО, Г.АЛЕКСАНДРОВ","Владимир"]
[840700207,"ЭЛЕКСКОР, г.Владимир, Комиссарова д.19","Г.ВЛАДИМИР","Владимир","ВЛАДИМИРСКАЯ ОБЛ., Г.АЛЕК","Владимир"]
[840700214,"ЭЛЕКСКОР, г.Гусь-Хрустальный, Интернациональная д.24","Г.ГУСЬ-ХРУСТАЛЬНЫЙ","Владимир","РЕСПУБЛИКА ТАТАРСТАН, ТУК","Казань"]
[840700260,"ЭВЕРЕСТ, г.Казань, Волгоградская ул. д.8","Г.КАЗАНЬ","Казань","Н.-НОВГОРОДСКАЯ ОБЛ., Г.Д","Нижний Новгород"]
[840700265,"ГИПЕРГЛОБУ, Владимирская обл., г.Владимир,, Суздальский пр-т, д.28","ВЛАДИМИРСКАЯ ОБЛ., Г.ВЛАД","Владимир","Г.ДЗЕРЖИНСК,","Нижний Новгород"]
[840700316,"МИЛКФЕСТ, г.Нижний Новгород, Болотникова ул. д.2а","Г.НИЖНИЙ НОВГОРОД","Нижний Новгород","РЯЗАНСКАЯ ОБЛ., Г.РЫБНОЕ,","Рязань"]
[840700356,"ТАНДЕМ, г.Нижний Новгород, Героя Поющева ул. д.20","Г.НИЖНИЙ НОВГОРОД","Нижний Новгород","ЧУВАШСКАЯ РЕСПУБЛИКА, Г.","Нижний Новгород"]
[840700357,"ТАНДЕМ, г.Нижний Новгород, Шмидта ул. д.1б","Г.НИЖНИЙ НОВГОРОД","Нижний Новгород","РЕСПУБЛИКА ТАТАРСТАН, ЛАИ","Казань"]
[840700363,"ЭКСТРА, Ивановская обл., г.Иваново,, 8 Марта ул., д.32","ИВАНОВСКАЯ ОБЛ., Г.ИВАНОВ","Иваново","НИЖ. ОБЛ, КСТОВСКИЙ Р-Н,","Нижний Новгород"]
[840700379,"САМОХВАЛ, Владимирская обл.,г.Гусь-Хрустальны, Калинина ул. д.28","ВЛАДИМИРСКАЯ ОБЛ.,Г.ГУСЬ-","Владимир","Г. ИВАНОВО,","Иваново"]
[840700383,"МЕТРО, Ивановская область,, Ивановский район,южнее дер.Иг стр.1","ИВАНОВСКАЯ ОБЛАСТЬ,","Иваново","ЯРОСЛАВСКАЯ ОБЛ., П/О ЩЕД","Ярославль"]
[840700387,"ГИПЕРГЛОБУ, Рязанская обл., Рязанский р-он,, с.Дядьково","РЯЗАНСКАЯ ОБЛ., РЯЗАНСКИЙ","Рязань","НИЖЕГОРОДСКАЯ ОБЛ., Г.КСТ","Нижний Новгород"]
[840700398,"КОПЕЙКА-МО, г.Ярославль, Гоголя ул. д.2","Г.ЯРОСЛАВЛЬ","Ярославль","ВЛАДИМИРСКАЯ ОБЛ., Г.ПЕТУ","Владимир"]
[840700413,"СЛАДКАЯ ЖИ, г.Нижний Новгород,, Комсомольское шоссе, д.4","Г.НИЖНИЙ НОВГОРОД,","Нижний Новгород","РФ,УДМУРТСКАЯ РЕСПУБЛИКА,","Ижевск"]
[840700422,"СЕДЬМОЙ, Ярославская обл., г.Ярославль,, Слепнева ул., д.23","ЯРОСЛАВСКАЯ ОБЛ., Г.ЯРОСЛ",{"$f":"IFERROR(VLOOKUP(C67,$E$3:$F$69,2,FALSE),\" \")","v":"Ярославль"},"ЯРОСЛАВСКАЯ ОБЛ., Г.РЫБИН","Ярославль"]
[840700445,"ГИПЕРГЛОБУ, Ярославская обл., Ярославский район, пос. \"Красный бор\", стр.1","ЯРОСЛАВСКАЯ ОБЛ., ЯРОСЛАВ","Ярославль","ВЛАДИМИРСКАЯ ОБЛ., ВЯЗНИК","Владимир"]
[840700513,"ПЕРЕКРЕСТОК, Рязанская обл., г.Рязань,, Соборная ул., д.15а","РЯЗАНСКАЯ ОБЛ., Г.РЯЗАНЬ,","Рязань","ВЛАДИМИРСКАЯ ОБЛ., Г.МУРО","Владимир"]
[840700529,"ЗЕЛЬГРОС, г.Рязань,, Восточная окружная дорога, д.15","Г.РЯЗАНЬ,","Рязань"]
[840700555,"СЛАДКАЯ ЖИ, г.Нижний Новгород, Канавинский р-он, Московское шоссе, д.296","Г.НИЖНИЙ НОВГОРОД, КАНАВИ","Нижний Новгород"]
[840700556,"ПЕРЕКРЕСТОК, г.Набережные Челны,, Сююмбике пр-т, д.2/19","Г.НАБЕРЕЖНЫЕ ЧЕЛНЫ,","Казань"]
[840700557,"ПЕРЕКРЕСТОК, г.Казань,, Ямашева пр-т, д.93","Г.КАЗАНЬ,","Казань"]
[840700559,"СЛАДКАЯ ЖИ, Нижегородская обл., г.Дзержинск,, Циолковского пр-т, д.49","НИЖЕГОРОДСКАЯ ОБЛ., Г.ДЗЕ","Нижний Новгород"]
[840700565,"РЕАЛ, г.Иваново,, Куконковых ул., д.141","Г.ИВАНОВО,","Иваново"]
[840700597,"ВЕЛС, г.Владимир,, Перекопский городок, д.24","Г.ВЛАДИМИР,","Владимир"]
[840700598,"ВЕЛС-ПЛЮС, г.Владимир,, Тумская ул., д.16","Г.ВЛАДИМИР,","Владимир"]
[840700617,"ПЕРЕКРЕСТОК, г.Набережные Челны,, Чулман пр-т, д.120","Г.НАБЕРЕЖНЫЕ ЧЕЛНЫ,","Казань"]
[840700625,"СЛАДКАЯ ЛА, г.Нижний Новгород,, Базовый проезд, д.1а","Г.НИЖНИЙ НОВГОРОД,","Нижний Новгород"]
[840700646,"ПЕРЕКРЕСТОК, Республика Татарстан, г.Казань,, Минская ул., д.9","РЕСПУБЛИКА ТАТАРСТАН, Г.К","Казань"]
[840700660,"ПАВЛОВ АА, г.Кострома,, п.Новый, д.5,кв.45","Г.КОСТРОМА,","Кострома"]
[840700661,"ПАВЛОВ АА, г.Кострома,, Кинешемское шоссе, д.4","Г.КОСТРОМА,","Кострома"]
[840700683,"ПЕРЕКРЕСТОК, Республика Татарстан,г.Набережные Ч, Мира пр-т, д.3","РЕСПУБЛИКА ТАТАРСТАН,Г.НА","Казань"]
[840700685,"ПЕРЕКРЕСТОК, г. Казань,, Победы пр-т, д.50б","Г. КАЗАНЬ,","Казань"]
[840700686,"ПЕРЕКРЕСТОК, Республика Татарстан, г.Казань,, Краснококшайская ул., д.150/2","РЕСПУБЛИКА ТАТАРСТАН, Г.К","Казань"]
[840700693,"ПЕРЕКРЕСТОК, г. Ярославль,, Малая Пролетарская ул., д.58","Г. ЯРОСЛАВЛЬ,","Ярославль"]
[840700694,"СЛАДКАЯ ЖИ, г. Нижний Новгород,, Московское шоссе, д.122","Г. НИЖНИЙ НОВГОРОД,","Нижний Новгород"]
[840700700,"СЛАДКАЯ ЖИ, г. Нижний Новгород,, Плотникова ул., д.3а","Г. НИЖНИЙ НОВГОРОД,","Нижний Новгород"]
[840700701,"СЛАДКАЯ ЖИ, г. Нижний Новгород,, Комсомольская пл., д.1","Г. НИЖНИЙ НОВГОРОД,","Нижний Новгород"]
[840700707,"ПЕРЕКРЕСТОК, Республика Татарстан, г.Казань,, Ибрагимова пр-т, д.56","РЕСПУБЛИКА ТАТАРСТАН, Г.К","Казань"]
[840700737,"СЛАДКАЯ ЖИ, Нижегородская обл., г.Дзержинск,, Циолковского пр-т, д.61","НИЖЕГОРОДСКАЯ ОБЛ., Г.ДЗЕ","Нижний Новгород"]
[840700750,"ТАНДЕР, Нижегородская обл.,Кстовский р-он,, г.Кстово, пл. Ленина, д.5а","НИЖЕГОРОДСКАЯ ОБЛ.,КСТОВС","Нижний Новгород"]
[840700751,"ТАНДЕР, Ярославская обл., г.Ярославль,, пр-кт Авиаторов, д.159","ЯРОСЛАВСКАЯ ОБЛ., Г.ЯРОСЛ","Ярославль"]
[840700756,"ЭФКО-КАЗАН, г.Казань,, Парина ул., д.22","Г.КАЗАНЬ,","Казань"]
[840700757,"ЭФКО-КАЗАН, г.Казань,, Тихорецкая ул., д.7","Г.КАЗАНЬ,","Казань"]
[840700758,"ПЕРЕКРЕСТОК, г.Ярославль,, Ленинградский пр-т, д.123","Г.ЯРОСЛАВЛЬ,","Ярославль"]
[840700760,"ПЕРЕКРЕСТОК, г.Ижевск,, Холмогорова ул., д.11","Г.ИЖЕВСК,","Ижевск"]
[840700773,"ГЕРМИС НН, г.Нижний Новгород,, Нижне-Волжская набережная, д.5/2","Г.НИЖНИЙ НОВГОРОД,","Нижний Новгород"]
[840700782,"ПЕРЕКРЕСТОК, г.Казань,, Сибирский тракт, д.34,кор.1","Г.КАЗАНЬ,",{"$f":"IFERROR(VLOOKUP(C99,$E$3:$F$69,2,FALSE),\" \")","v":"Казань"}]
[840700793,"ПЕРЕКРЕСТОК, г.Ярославль,, Московский пр-т, д.125","Г.ЯРОСЛАВЛЬ,","Ярославль"]
[840700816,"ПЕРЕКРЕСТОК, Республика Татарстан, г.Казань,, Спартаковская ул., д.6","РЕСПУБЛИКА ТАТАРСТАН, Г.К","Казань"]
[840700861,"ПЕРЕКРЕСТОК, г.Ижевск,, Автозаводская ул., д.3а","Г.ИЖЕВСК,","Ижевск"]
[840700880,"ПЕРЕКРЕСТОК, Республика Татарстан,г.Нижнекамск,, Химиков ул., д.18","РЕСПУБЛИКА ТАТАРСТАН,Г.НИ","Казань"]
[840700881,"ПЕРЕКРЕСТОК, Республика Татарстан,г.Альметьевск,, Ленина ул., д.100","РЕСПУБЛИКА ТАТАРСТАН,Г.АЛ","Казань"]
[840700882,"ПЕРЕКРЕСТОК, Республика Татарстан, г.Альметьевск, Герцена ул., д.3в","РЕСПУБЛИКА ТАТАРСТАН, Г.А","Казань"]
[840700883,"ПЕРЕКРЕСТОК, Республика Татарстан,Нижнекамский р, г.Нижнекамск,Корабельная ул., д.42","РЕСПУБЛИКА ТАТАРСТАН,НИЖН","Казань"]
[840700884,"ПЕРЕКРЕСТОК, Республика Марий-Эл,г.Волжск,, 107-й бригады, д.5е","РЕСПУБЛИКА МАРИЙ-ЭЛ,Г.ВОЛ","Нижний Новгород"]
[840700885,"ПЕРЕКРЕСТОК, Республика Татарстан, г.Казань,, Юлиуса Фучика ул., д.90","РЕСПУБЛИКА ТАТАРСТАН, Г.К","Казань"]
[840700886,"ПЕРЕКРЕСТОК, Республика Татарстан,г.Нижнекамск,, Вахитова ул., д.47","РЕСПУБЛИКА ТАТАРСТАН,Г.НИ","Казань"]
[840700889,"ПЕРЕКРЕСТОК, г. Ярославль,, Толбухина ул., д.21","Г. ЯРОСЛАВЛЬ,","Ярославль"]
[840700894,"ФУДЛАЙН, г.Владимир,, Спасская ул., д.4","Г.ВЛАДИМИР,","Владимир"]
[840700947,"КОПЕЙКА-ПО, г.Нижний Новгород,, Нартова ул., д.6, корп.6","Г.НИЖНИЙ НОВГОРОД,","Нижний Новгород"]
[840700949,"КОПЕЙКА-ПО, г.Нижний Новгород,, Федосеенко ул., д.43","Г.НИЖНИЙ НОВГОРОД,","Нижний Новгород"]
[840700972,"МАКАРОВА, г.Ярославль,, Дзержинского пр-кт, д.8, кор. кв.33","Г.ЯРОСЛАВЛЬ,","Ярославль"]
[840701006,"ПЕРЕКРЕСТОК, г.Ярославль,, Калинина ул., д.31","Г.ЯРОСЛАВЛЬ,","Ярославль"]
[840701022,"СЕДЬМОЙ КО, Рязанская обл., г.Рязань,, Солотчинское шоссе, д.11","РЯЗАНСКАЯ ОБЛ., Г.РЯЗАНЬ,","Рязань"]
[840701049,"СЕДЬМОЙ, Ивановская обл., Иваново,, Кохомское ш., 1Д","ИВАНОВСКАЯ ОБЛ., ИВАНОВО,","Иваново"]
[840701088,"СЕДЬМОЙ, г.Нижний Новгород,, Коминтерна ул., д.11","Г.НИЖНИЙ НОВГОРОД,","Нижний Новгород"]
[840701099,"АТАК, Рязанская обл., г.Рязань,, Новоселов ул., д.14/16","РЯЗАНСКАЯ ОБЛ., Г.РЯЗАНЬ,","Рязань"]
[840701106,"АТАК, Рязанская обл., г.Рязань,, Пушкина ул., д.27","РЯЗАНСКАЯ ОБЛ., Г.РЯЗАНЬ,","Рязань"]
[840701116,"АТАК, Владимирская обл., г.Ковров,, Ватутина пр-д, д.59/1","ВЛАДИМИРСКАЯ ОБЛ., Г.КОВР","Владимир"]
[840701126,"ПЕРЕКРЕСТОК, г.Казань,, Чистопольская ул., д.69","Г.КАЗАНЬ,","Казань"]
[840701130,"АШАН, г.Казань,, Победы пр., д.91","Г.КАЗАНЬ,","Казань"]
[840701131,"ПЕРЕКРЕСТОК, г.Иваново,, пр-кт  Шереметевский, д.89","Г.ИВАНОВО,","Иваново"]
[840701134,"ПЕРЕКРЕСТОК, Рязанская обл., г.Рязань,, Московское шоссе, д.65а","РЯЗАНСКАЯ ОБЛ., Г.РЯЗАНЬ,","Рязань"]
[840701139,"ПЕРЕКРЕСТОК, г.Рязань,, Заводской пр-д, д.1,лит.3","Г.РЯЗАНЬ,","Рязань"]
[840701142,"МЕТРО, Чувашская республика, г.Чебоксары,, Марпосадское шоссе, д.15/2","ЧУВАШСКАЯ РЕСПУБЛИКА, Г.Ч","Нижний Новгород"]
[840701148,"МЕТРО, г.Казань,, Тихорецкая ул., д.4","Г.КАЗАНЬ,","Казань"]
[840701153,"АРИСТЕЙ, Удмуртская республика, г.Ижевск,, Красноармейская 86","УДМУРТСКАЯ РЕСПУБЛИКА, Г.","Ижевск"]
[840701155,"РЕАЛ, Удмуртская республика, г.Ижевск,, Ленина ул., д.136","УДМУРТСКАЯ РЕСПУБЛИКА, Г.","Ижевск"]
[840701166,"МЕТРО, Удмуртская республика, г.Ижевск,, Союзная ул., д.6","УДМУРТСКАЯ РЕСПУБЛИКА, Г.",{"$f":"IFERROR(VLOOKUP(C131,$E$3:$F$69,2,FALSE),\" \")","v":"Ижевск"}]
[840701175,"ЗЕЛЬГРОС, Республика Татарстан, г.Казань,, Мамадышский тракт, д.32","РЕСПУБЛИКА ТАТАРСТАН, Г.К","Казань"]
[840701179,"АГРОТОРГ, Республика Татарстан, г.Зеленодольс, Строителей пр-т, д.2","РЕСПУБЛИКА ТАТАРСТАН, Г.З","Казань"]
[840701197,"ПЕРЕКРЕСТОК, г.Кострома,, Поселковая ул., д.37","Г.КОСТРОМА,","Кострома"]
[840701229,"АЙСФУД, г.Ярославль,, Пожарского ул., д.17","Г.ЯРОСЛАВЛЬ,","Ярославль"]
[840701232,"АШАН, Россия, Рязанская обл., г.Рязань,, Московское шоссе, д. 21","РОССИЯ, РЯЗАНСКАЯ ОБЛ., Г","Рязань"]
[840701259,"АТАК, г.Владимир,, Дворянская ул., д.10","Г.ВЛАДИМИР,","Владимир"]
[840701272,"КОНСТАНТА, г.Владимир,, 1-ая Пионерская ул., д.94","Г.ВЛАДИМИР,","Владимир"]
[840701293,"АШАН, г.Нижний Новгород,, Бетанкура ул., д.1","Г.НИЖНИЙ НОВГОРОД,","Нижний Новгород"]
[840701311,"ПРОДМИР, ВО, г.Александров, Ленина ул., д.13 к.1","ВО, Г.АЛЕКСАНДРОВ","Владимир"]
[840701317,"САДЫКОВ Р., г.Рязань,, Новикова-Прибоя ул., д.14, кв.12","Г.РЯЗАНЬ,","Рязань"]
[840701324,"БАШИРОВ, г.Рязань,, Крупской ул., д.4,кв.92","Г.РЯЗАНЬ,","Рязань"]
[840701328,"ЖИРНОВ, г.Владимир,, Береговая ул., д.13","Г.ВЛАДИМИР,","Владимир"]
[840701329,"ЖИРНОВ, г.Владимир,, Гастелло ул., д.8","Г.ВЛАДИМИР,","Владимир"]
[840701331,"ТАНДЕР, г.Иваново,, Станкостроителей ул., д.1","Г.ИВАНОВО,","Иваново"]
[840701334,"АТАК, Владимирская обл., г.Александров,, Институтская ул., д.1","ВЛАДИМИРСКАЯ ОБЛ., Г.АЛЕК","Владимир"]
[840701336,"А-МЕГА, г.Владимир,, 16 лет Октября ул., д.68а","Г.ВЛАДИМИР,","Владимир"]
[840701337,"А-МЕГА, г.Владимир,, Добросельская ул., д.186а","Г.ВЛАДИМИР,","Владимир"]
[840701342,"СТАНДАРТ, г.Нижний Новгород,, Ильинская ул., д.26","Г.НИЖНИЙ НОВГОРОД,","Нижний Новгород"]
[840701384,"АШАН, г.Кострома,, Волжская 2-я ул., 8","Г.КОСТРОМА,","Кострома"]
[840701385,"АШАН, г.Ярославль,, Полушкина Роща ул., д.9,стр.13","Г.ЯРОСЛАВЛЬ,","Ярославль"]
[840701391,"АТАК, Ярославская обл., Ярославский р-н,, Волгоградская ул., д.39","ЯРОСЛАВСКАЯ ОБЛ., ЯРОСЛАВ","Ярославль"]
[840701401,"ФРЕГАТ, Республика Татарстан, Тукаевский р-, д.Суровка, Чехова ул., д.55","РЕСПУБЛИКА ТАТАРСТАН, ТУК","Казань"]
[840701402,"ФРЕГАТ, Республика Татарстан,г.Набережные Ч, Промышленно-коммунальная 38/17,к.17","РЕСПУБЛИКА ТАТАРСТАН,Г.НА","Казань"]
[840701439,"АТАК, г.Рязань,, Бирюзова ул., д.22/2","Г.РЯЗАНЬ,","Рязань"]
[840701460,"БИОП, Н.-Новгородская обл., г.Дзержинск,, Гайдара ул., д.59 кор.3","Н.-НОВГОРОДСКАЯ ОБЛ., Г.Д","Нижний Новгород"]
[840701461,"БИОП, г.Дзержинск,, Циалковского ул., д.62а","Г.ДЗЕРЖИНСК,","Нижний Новгород"]
[840701462,"ДИКСИ ЮГ, Рязанская обл., г.Рыбное,, ул.Малое шоссе д.3","РЯЗАНСКАЯ ОБЛ., Г.РЫБНОЕ,","Рязань"]
[840701486,"ПРОДМИР, г.Нижний Новгород,, Базарная ул., д.8","Г.НИЖНИЙ НОВГОРОД,","Нижний Новгород"]
[840701489,"БИЛЛА, г.Нижний Новгород,, Родионова ул., д.165/13","Г.НИЖНИЙ НОВГОРОД,","Нижний Новгород"]
[840701495,"АККОРД, г.Нижний Новгород,, Комсомольское ш., д.4","Г.НИЖНИЙ НОВГОРОД,","Нижний Новгород"]
[840701503,"ПРОДМИР, Чувашская Республика, г. Чебоксары,, Ядринское ш., д.3,","ЧУВАШСКАЯ РЕСПУБЛИКА, Г.","Нижний Новгород"]
[840701509,"ПЕРЕКРЕСТОК, Республика Татарстан, Лаишевский р-, 11 км автодороги \"Казань-Оренб д.19","РЕСПУБЛИКА ТАТАРСТАН, ЛАИ",{"$f":"IFERROR(VLOOKUP(C163,$E$3:$F$69,2,FALSE),\" \")","v":"Казань"}]
[840701511,"ПРОДМИР, г.Нижний Новгород,, Красных Зорь ул., д.19","Г.НИЖНИЙ НОВГОРОД,","Нижний Новгород"]
[840701514,"ПРОДМИР, Чувашская Республика, г. Чебоксары,, К. Маркса ул., д.47А","ЧУВАШСКАЯ РЕСПУБЛИКА, Г.","Нижний Новгород"]
[840701515,"ПРОДМИР, г.Нижний Новгород,, Казанское ш., д.6","Г.НИЖНИЙ НОВГОРОД,","Нижний Новгород"]
[840701518,"АШАН, г.Нижний Новгород,, Московское ш., д.12","Г.НИЖНИЙ НОВГОРОД,","Нижний Новгород"]
[840701521,"СЛАДКАЯ ЖИ, Ниж. обл, Кстовский р-н, д.Опалиха,, Кстовский Индустриальный Комплекс-1","НИЖ. ОБЛ, КСТОВСКИЙ Р-Н,","Нижний Новгород"]
[840701534,"СКЛАДСКОЙ, г. Иваново,, Окуловой ул., д.70","Г. ИВАНОВО,","Иваново"]
[840701538,"ПРОДМИР, г.Нижний Новгород,, Свободы ул., д.15","Г.НИЖНИЙ НОВГОРОД,","Нижний Новгород"]
[840701540,"АШАН, г.Нижний Новгород,, Родионова ул., д.187В","Г.НИЖНИЙ НОВГОРОД,","Нижний Новгород"]
[840701555,"АШАН, Ярославская обл., п/о Щедрино,, пос. Нагорный, Дорожная ул., д.6","ЯРОСЛАВСКАЯ ОБЛ., П/О ЩЕД","Ярославль"]
[840701587,"ГРЕТТА, г.Казань,, Ямашева пр-кт, д.38","Г.КАЗАНЬ,","Казань"]
[840701591,"ПРОДМИР, Нижегородская обл., г.Кстово,, Победы пр-кт, д. 4А,","НИЖЕГОРОДСКАЯ ОБЛ., Г.КСТ","Нижний Новгород"]
[840701592,"АТАК, Владимирская обл., г.Петушки,, 3 Интернационала ул., д.6-8","ВЛАДИМИРСКАЯ ОБЛ., Г.ПЕТУ","Владимир"]
[840701597,"АШАН, РФ,Удмуртская республика, г.Ижевск,, Ленина ул., д.136","РФ,УДМУРТСКАЯ РЕСПУБЛИКА,","Ижевск"]
[840701605,"ПЕРЕКРЕСТОК, Ярославская обл., г.Рыбинск,, Бабушкина ул., д.29","ЯРОСЛАВСКАЯ ОБЛ., Г.РЫБИН","Ярославль"]
[840701615,"АТАК, Владимирская обл., г.Ковров,, Грибоедова ул, д.3","ВЛАДИМИРСКАЯ ОБЛ., Г.КОВР","Владимир"]
[840701618,"САДЫКОВ Р., г.Рязань,, Шабулина пр-д, д.18А","Г.РЯЗАНЬ,","Рязань"]
[840701621,"АТАК, Владимирская обл., Вязниковский р-н, г.Вязники, Ленина ул., д.45","ВЛАДИМИРСКАЯ ОБЛ., ВЯЗНИК","Владимир"]
[840701622,"АТАК, Владимирская обл., г.Муром,, Филатова ул., д.10","ВЛАДИМИРСКАЯ ОБЛ., Г.МУРО","Владимир"]
[840701629,"АШАН, г.Казань,, Ямашева пр-кт, д.46/33","Г.КАЗАНЬ,","Казань"]
[840701636,"ПРОДМИР, г.Нижний Новгород,, Ленина пр-кт, д.67, к.1","Г.НИЖНИЙ НОВГОРОД,","Нижний Новгород"]
[840701653,"АШАН, Ивановская обл., г.Иваново,, Куконковых ул., д.141","ИВАНОВСКАЯ ОБЛ., Г.ИВАНОВ","Иваново"]
[840701656,"АТАК, Нижегородская обл.,Кстовский р-н,, г.Кстово, 2-ой мкр, д.13","НИЖЕГОРОДСКАЯ ОБЛ.,КСТОВС","Нижний Новгород"]
[840701657,"СЕДЬМОЙ, г.Кострома,, Магистральная ул., д.20,","Г.КОСТРОМА,","Кострома"]
[840701685,"ПЕРЕКРЕСТОК, г. Ярославль,, Победы ул., д.41,","Г. ЯРОСЛАВЛЬ,","Ярославль"]
[840701693,"РЕАЛЬТА, Удмуртская республика, г.Ижевск,, Тимирязева ул., д.17,","УДМУРТСКАЯ РЕСПУБЛИКА, Г.","Ижевск"]
[840701694,"РЕАЛЬТА, Удмуртская республика, г.Ижевск,, Автономная ул., д.87,","УДМУРТСКАЯ РЕСПУБЛИКА, Г.","Ижевск"]
[840701715,"КОМПАНИЯ ФРЕГАТ ООО, Республика Татарстан, Тукаевский р-, д.Суровка, Чехова ул., д.55","РЕСПУБЛИКА ТАТАРСТАН, ТУК","Казань"]
[null,null,null," "]
[null,null,null," "]

{"sheet":"СВОДНЫЙ","index":2,"n_rows":255,"n_cols":21,"rows_kept":255,"cut":false,"hidden":false,"merged":[]}
[null,"СВОДНЫЙ ПО ГРУППАМ ПРОДУКЦИИ"]
[1]
[null,null,"Код клиента",840650200,840650779,840651200,840651210,840651214,840651217,840651220,840700178,840700383,840700413,840700513,840700529,840700556,840700557,840700646,840700685,840700693]
["SAP-код",null,"Клиентà\nФормулы\nâ","МЕТРО, г.Набережные Челны,, Чулман пр-т, д.33","МЕТРО, г.Рязань,, Московское шоссе, д.25","АШАН, РФ, Нижегородская обл., Кстовский р, c. Федяково, \"МЕГА\" Семейный центр","МЕТРО, г.Нижний Новгород,, Нартова ул., д.4А","МЕТРО, г.Нижний Новгород,, Мещерский б-р, д.3А","МЕТРО, г.Ярославль,, Фрунзе пр-т, д.32","МЕТРО, г.Казань,, Вахитова ул., д.4","СЕДЬМОЙ КО, Ярославская обл., г.Ярославль,, Московский проспект, д.108","МЕТРО, Ивановская область,, Ивановский район,южнее дер.Иг стр.1","СЛАДКАЯ ЖИ, г.Нижний Новгород,, Комсомольское шоссе, д.4","ПЕРЕКРЕСТОК, Рязанская обл., г.Рязань,, Соборная ул., д.15а","ЗЕЛЬГРОС, г.Рязань,, Восточная окружная дорога, д.15","ПЕРЕКРЕСТОК, г.Набережные Челны,, Сююмбике пр-т, д.2/19","ПЕРЕКРЕСТОК, г.Казань,, Ямашева пр-т, д.93","ПЕРЕКРЕСТОК, Республика Татарстан, г.Казань,, Минская ул., д.9","ПЕРЕКРЕСТОК, г. Казань,, Победы пр-т, д.50б","ПЕРЕКРЕСТОК, г. Ярославль,, Малая Пролетарская ул., д.58","Общий результат"]
["1-84-001001","1-84-001001 Разрыхлитель теста,10г",null,1,5,9,null,9,null,null,null,null,null,null,null,null,null,null,null,null,{"$f":"SumHid(C5:T5)","v":24}]
["1-84-001199","1-84-001199 Разрыхлитель теста, 10г",null,2,4,8,null,3,null,null,null,null,null,null,null,null,null,null,null,null,17]
["1-84-001200","1-84-001200 Разрыхлитель теста,10гх5шт.",null,null,null,null,null,null,null,null,null,null,null,null,null,null,null,null,null,null,0]
["1-84-001201","1-84-001201 Разрыхлитель теста,10гх5шт. (60)",null,null,null,null,null,null,null,null,null,null,null,null,null,null,null,null,null,null,0]
["1-84-071150","1-84-071150 Разрыхлитель с шафраном, 12 г.х 2",null,3,3,7,null,4,null,null,null,null,null,null,null,null,null,null,null,null,17]
["1-84-071734","1-84-071734 Разрыхлитель теста,10гх5шт.Юнит",null,4,2,6,null,5,null,null,null,null,null,null,null,null,null,null,null,null,17]
["1-84-091150","1-84-091150 Разрыхлитель с шафраном, 12г",null,5,1,5,null,6,null,null,null,null,null,null,null,null,null,null,null,null,17]
["",null,null,null,null,null,null,null,null,null,null,null,null,null,null,null,null,null,null,null,0]
["",null,null,null,null,null,null,null,null,null,null,null,null,null,null,null,null,null,null,null,0]
["",null,null,null,null,null,null,null,null,null,null,null,null,null,null,null,null,null,null,null,0]
["",null,null,null,null,null,null,null,null,null,null,null,null,null,null,null,null,null,null,null,0]
[null,"Разрыхлитель теста",{"$f":"SUM(C5:C15)","v":0},{"$f":"SUM(D5:D15)","v":15},15,35,0,27,0,0,0,0,0,0,0,0,0,0,0,0,92]
["1-84-001080","1-84-001080 Дрожжи сух.мгновеннодейств. 80 шт.",null,null,null,null,null,null,null,null,null,null,null,null,null,null,null,null,null,null,0]
["1-84-001081","1-84-001081 Дрожжи сух.мгновеннодейств. 90 шт.",null,null,null,5,6,5,null,null,null,null,null,null,null,null,null,null,null,null,16]
["1-84-071081","1-84-071081 Дрожжи хлебопекарные сухие,7гх5шт.",null,null,null,null,null,null,null,null,null,null,null,null,null,null,null,null,null,null,0]
["1-84-071080","1-84-071080 Дрожжи хлебопекарные сухие,7гх5шт.",null,null,null,4,7,null,null,null,null,null,null,null,null,null,null,null,null,null,11]
["",null,null,null,null,null,null,null,null,null,null,null,null,null,null,null,null,null,null,null,0]
["",null,null,null,null,null,null,null,null,null,null,null,null,null,null,null,null,null,null,null,0]
["",null,null,null,null,null,null,null,null,null,null,null,null,null,null,null,null,null,null,null,0]
["",null,null,null,null,null,null,null,null,null,null,null,null,null,null,null,null,null,null,null,0]
[null,"Дрожжи сух.мгновеннодейств. ",{"$f":"SUM(C17:C24)","v":0},{"$f":"SUM(D17:D24)","v":0},0,9,13,5,0,0,0,0,0,0,0,0,0,0,0,0,27]
["1-84-001010","1-84-001010 Сахар Ванильный 8г(100шт)",null,2,null,null,null,null,null,null,null,null,null,null,null,null,null,null,null,null,2]
["1-84-001208","1-84-001208 Сахар ванильный,8г 60x5",null,3,null,null,null,null,null,null,null,null,null,null,null,null,null,null,null,null,3]
["1-84-001210","1-84-001210 Сахар с натуральной Ванилью 15г*2шт",null,4,null,null,null,null,null,null,null,null,null,null,null,null,null,null,null,null,4]
["1-84-010100","1-84-010100 Сахар с натуральной ванилью 15г",null,5,null,null,null,null,null,null,null,null,null,null,null,null,null,null,null,null,5]
["1-84-071733","1-84-071733 Сахар ванильный,8гх5 шт.Юнит",null,null,null,null,null,null,null,null,null,null,null,null,null,null,null,null,null,null,0]
["",null,null,null,null,null,null,null,null,null,null,null,null,null,null,null,null,null,null,null,0]
["",null,null,null,null,null,null,null,null,null,null,null,null,null,null,null,null,null,null,null,0]
["",null,null,null,null,null,null,null,null,null,null,null,null,null,null,null,null,null,null,null,0]
["",null,null,null,null,null,null,null,null,null,null,null,null,null,null,null,null,null,null,null,0]
[null,"Ванильный сахар",{"$f":"SUM(C26:C34)","v":0},{"$f":"SUM(D26:D34)","v":14},0,0,0,0,0,0,0,0,0,0,0,0,0,0,0,0,14]
["1-84-001006","1-84-001006 Желатин пищевой,10г",null,null,null,null,null,null,null,null,null,null,null,null,null,null,null,null,null,null,0]
["1-84-001013","1-84-001013 Желатин 30г",null,null,null,null,null,null,null,null,null,null,null,null,null,null,null,null,null,null,0]
["1-84-001014","1-84-001014 Желатин пищевой,10г",null,null,null,null,null,null,null,null,null,null,null,null,null,null,null,null,null,null,0]
["1-84-001206","1-84-001206 Желатин пищевой,10гх5шт. (33уп)",null,null,null,null,null,null,null,null,null,null,null,null,null,null,null,null,null,null,0]
["1-84-001213","1-84-001213 Желатин 30гх2",null,null,null,null,null,null,null,null,null,null,null,null,null,null,null,null,null,null,0]
["1-84-077740","1-84-077740 Желатин пищевой,10гх5шт Юнит",null,null,null,null,null,null,null,null,null,null,null,null,null,null,null,null,null,null,0]
[null,"Желатин быстрорастворимый",null,null,null,null,null,null,null,null,null,null,null,null,null,null,null,null,null,null,0]
["",null,null,null,null,null,null,null,null,null,null,null,null,null,null,null,null,null,null,null,0]
["",null,null,null,null,null,null,null,null,null,null,null,null,null,null,null,null,null,null,null,0]
["",null,null,null,null,null,null,null,null,null,null,null,null,null,null,null,null,null,null,null,0]
["",null,null,null,null,null,null,null,null,null,null,null,null,null,null,null,null,null,null,null,0]
[null,"Желатин быстрорастворимый",{"$f":"SUM(C36:C46)","v":0},{"$f":"SUM(D36:D46)","v":0},0,0,0,0,0,0,0,0,0,0,0,0,0,0,0,0,0]
["1-84-001012","1-84-001012 Посыпка цветная 80г",null,null,null,null,null,null,null,null,null,null,null,null,null,null,null,null,null,null,0]
["1-84-010210","1-84-010210 Жемчужинки золотые",null,null,null,null,null,null,null,null,null,null,null,null,null,null,null,null,null,null,0]
["1-84-010220","1-84-010220 Жемчужинки бело-голубые",null,null,null,null,null,null,null,null,null,null,null,null,null,null,null,null,null,null,0]
["1-84-010240","1-84-010240 Жемчужинки бело-розовые",null,null,null,null,null,null,null,null,null,null,null,null,null,null,null,null,null,null,0]
["1-84-061010","1-84-061010 Розочки",null,null,null,null,null,null,null,null,null,null,null,null,null,null,null,null,null,null,0]
["1-84-061620","1-84-061620 Маргаритки Ассорти",null,null,null,null,null,null,null,null,null,null,null,null,null,null,null,null,null,null,0]
["1-84-061630","1-84-061630 Розочки Белые",null,null,null,null,null,null,null,null,null,null,null,null,null,null,null,null,null,null,0]
["1-84-061640","1-84-061640 Розочки Ассорти",null,null,null,null,null,null,null,null,null,null,null,null,null,null,null,null,null,null,0]
["1-84-061680","1-84-061680 Пищевые красители для яиц",null,null,null,null,null,null,null,null,null,null,null,null,null,null,null,null,null,null,0]
["1-84-061650","1-84-061650 Шоко-Декор Белый/Темный шоколад Лепестки",null,null,null,null,null,null,null,null,null,null,null,null,null,null,null,null,null,null,0]
["1-84-061660","1-84-061660 Шоко-Декор Темный шоколад",null,null,null,null,null,null,null,null,null,null,null,null,null,null,null,null,null,null,0]
["1-84-061670","1-84-061670 Шоко-Декор Белый/Темный шоколад Сердечки",null,null,null,null,null,null,null,null,null,null,null,null,null,null,null,null,null,null,0]
["1-84-091093","1-84-091093 Посыпка Шоколадная 80г",null,null,null,null,null,null,null,null,null,null,null,null,null,null,null,null,null,null,0]
["1-84-001009","1-84-001009 Сахарная пудра \"Ваниль\" 80г",null,null,null,null,null,null,null,null,null,null,null,null,null,null,null,null,null,null,0]
["1-84-071009","1-84-071009 Сахарная пудра, 80г*5",null,null,null,null,null,null,null,null,null,null,null,null,null,null,null,null,null,null,0]
["1-84-091147","1-84-091147 Сахарная пудра с натуральн. ванилью 40г",null,null,null,null,null,null,null,null,null,null,null,null,null,null,null,null,null,null,0]
["1-84-071147","1-84-071147 Сахарная пудра с натур. ванилью 40 г х 2",null,null,null,null,null,null,null,null,null,null,null,null,null,null,null,null,null,null,0]
["1-84-003053","1-84-003053 Карандаши сахарные 76г",null,null,null,null,null,null,null,null,null,null,null,null,null,null,null,null,null,null,0]
["1-84-002321","1-84-002321 Карандаши сахарные шоколад-карамель 76г",null,null,null,null,null,null,null,null,null,null,null,null,null,null,null,null,null,null,0]
["1-84-003051","1-84-003051 Глазурь со вкусом лимона,100г",null,null,null,null,null,null,null,null,null,null,null,null,null,null,null,null,null,null,0]
["1-84-003052","1-84-003052 Глазурь со вкусом марципана,100г",null,null,null,null,null,null,null,null,null,null,null,null,null,null,null,null,null,null,0]
["1-84-073052","1-84-073052 Глазурь марципан 100г*5",null,null,null,null,null,null,null,null,null,null,null,null,null,null,null,null,null,null,{"$f":"SumHid(C69:T69)","v":0}]
["1-84-090804","1-84-090804 Глазурь темный шоколад 100г",null,null,null,null,null,null,null,null,null,null,null,null,null,null,null,null,null,null,0]
["1-84-091142","1-84-091142 Глазурь темный и белый шоколад 100г",null,null,null,null,null,null,null,null,null,null,null,null,null,null,null,null,null,null,0]
[null,"Марципан",null,null,null,null,null,null,null,null,null,null,null,null,null,null,null,null,null,null,0]
["",null,null,null,null,null,null,null,null,null,null,null,null,null,null,null,null,null,null,null,0]
["",null,null,null,null,null,null,null,null,null,null,null,null,null,null,null,null,null,null,null,0]
["",null,null,null,null,null,null,null,null,null,null,null,null,null,null,null,null,null,null,null,0]
["",null,null,null,null,null,null,null,null,null,null,null,null,null,null,null,null,null,null,null,0]
[null,"Декор",{"$f":"SUM(C48:C76)","v":0},{"$f":"SUM(D48:D76)","v":0},0,0,0,0,0,0,0,0,0,0,0,0,0,0,0,0,0]
["1-84-001111","1-84-001111 Коричневый сахар с натур. ванилью, 40г",null,null,null,null,null,null,null,null,null,null,null,null,null,null,null,null,null,null,0]
["1-84-071111","1-84-071111 Коричневый сахар с нат. ванилью,40г*2",null,null,null,null,null,null,null,null,null,null,null,null,null,null,null,null,null,null,0]
["1-84-001004","1-84-001004 Желе для торта бесцветное,8г",null,null,null,null,null,null,null,null,null,null,null,null,null,null,null,null,null,null,0]
["1-84-001005","1-84-001005 Желе для торта красное,8г",null,null,null,null,null,null,null,null,null,null,null,null,null,null,null,null,null,null,0]
["1-84-071104","1-84-071104 Желе для торта бесцветное,8гх5шт.",null,null,null,null,null,null,null,null,null,null,null,null,null,null,null,null,null,null,0]
["1-84-001002","1-84-001002 Загуститель для сливок,8г",null,null,null,null,null,null,null,null,null,null,null,null,null,null,null,null,null,null,0]
["1-84-077352","1-84-077352 Загуститель для сливок, 8г.х 5 (50)",null,null,null,null,null,null,null,null,null,null,null,null,null,null,null,null,null,null,0]
["1-84-091143","1-84-091143 Какао-порошок, 50г",null,null,null,null,null,null,null,null,null,null,null,null,null,null,null,null,null,null,0]
["1-84-071143","1-84-071143 Какао-порошок, 50 г.х 2",null,null,null,null,null,null,null,null,null,null,null,null,null,null,null,null,null,null,0]
["1-84-001011","1-84-001011 Сахар с корицей 40г",null,null,null,null,null,null,null,null,null,null,null,null,null,null,null,null,null,null,0]
["1-84-001212","1-84-001212 Коричневый сахар с нат. корицей,40 г.х 2",null,null,null,null,null,null,null,null,null,null,null,null,null,null,null,null,null,null,0]
["1-84-010101","1-84-010101 Коричневый сахар с натур. корицей, 40г.",null,null,null,null,null,null,null,null,null,null,null,null,null,null,null,null,null,null,0]
["1-84-071011","1-84-071011 Сахар с корицей 40 г. х 2 шт.",null,null,null,null,null,null,null,null,null,null,null,null,null,null,null,null,null,null,0]
["1-84-001003","1-84-001003 Смесь для взбитых сливок  48г",null,null,null,null,null,null,null,null,null,null,null,null,null,null,null,null,null,null,0]
["1-84-072101","1-84-072101 Смесь для взбитых сливок,48гх5шт.",null,null,null,null,null,null,null,null,null,null,null,null,null,null,null,null,null,null,0]
["1-01-122100","1-01-122100 Мельница бурбонная ваниль",null,null,null,null,null,null,null,null,null,null,null,null,null,null,null,null,null,null,0]
["1-84-002003","1-84-002003 Смесь \"Творопыш\",60г",null,null,null,null,null,null,null,null,null,null,null,null,null,null,null,null,null,null,0]
["1-84-072003","1-84-072003 Смесь \"Творопыш\",60гх5шт.",null,null,null,null,null,null,null,null,null,null,null,null,null,null,null,null,null,null,0]
["1-84-002001","1-84-002001 Крем для торта  \"Ванильный\",50г",null,null,null,null,null,null,null,null,null,null,null,null,null,null,null,null,null,null,0]
["1-84-002002","1-84-002002 Крем для торта \"Шоколадный\",55г",null,null,null,null,null,null,null,null,null,null,null,null,null,null,null,null,null,null,0]
["1-84-072001","1-84-072001 Крем для торта ванильный,50гх5шт.",null,null,null,null,null,null,null,null,null,null,null,null,null,null,null,null,null,null,0]
["1-01-140800","1-01-140800 Ароматизатор лимон 4х2мл",null,null,null,null,null,null,null,null,null,null,null,null,null,null,null,null,null,null,0]
["1-01-141800","1-01-141800 Ароматизатор миндаль 4х2мл",null,null,null,null,null,null,null,null,null,null,null,null,null,null,null,null,null,null,0]
["1-01-142800","1-01-142800 Ароматизатор ром 4х2мл",null,null,null,null,null,null,null,null,null,null,null,null,null,null,null,null,null,null,0]
["1-01-144800","1-01-144800 Ароматизатор сливочная ваниль 4х2мл",null,null,null,null,null,null,null,null,null,null,null,null,null,null,null,null,null,null,0]
["1-84-001057","1-84-001057 Сода пищевая 5г",null,null,null,null,null,null,null,null,null,null,null,null,null,null,null,null,null,null,0]
["1-84-071057","1-84-071057 Сода пищевая, 5г*5",null,null,null,null,null,null,null,null,null,null,null,null,null,null,null,null,null,null,0]
[null,"Гарант Дрожжи",null,null,null,null,null,null,null,null,null,null,null,null,null,null,null,null,null,null,0]
[null,"Крахмал кукурузный",null,null,null,null,null,null,null,null,null,null,null,null,null,null,null,null,null,null,0]
["",null,null,null,null,null,null,null,null,null,null,null,null,null,null,null,null,null,null,null,0]
["",null,null,null,null,null,null,null,null,null,null,null,null,null,null,null,null,null,null,null,0]
["",null,null,null,null,null,null,null,null,null,null,null,null,null,null,null,null,null,null,null,0]
["",null,null,null,null,null,null,null,null,null,null,null,null,null,null,null,null,null,null,null,0]
[null,"Другие ингредиенты",{"$f":"SUM(C78:C110)","v":0},{"$f":"SUM(D78:D110)","v":0},0,0,0,0,0,0,0,0,0,0,0,0,0,0,0,0,0]
["1-01-880000","1-01-880000 Шоколадный торт",null,null,null,null,null,null,null,null,null,null,null,null,null,null,null,null,null,null,0]
["1-01-880300","1-01-880300 Чизкейк \"Нью-Йорк\"",null,null,null,null,null,null,null,null,null,null,null,null,null,null,null,null,null,null,0]
["1-01-890000","1-01-890000 Маффины",null,null,null,null,null,null,null,null,null,null,null,null,null,null,null,null,null,null,0]
["1-01-893500","1-01-893500 Шоколадные маффины",null,null,null,null,null,null,null,null,null,null,null,null,null,null,null,null,null,null,0]
["",null,null,null,null,null,null,null,null,null,null,null,null,null,null,null,null,null,null,null,0]
["",null,null,null,null,null,null,null,null,null,null,null,null,null,null,null,null,null,null,null,0]
["",null,null,null,null,null,null,null,null,null,null,null,null,null,null,null,null,null,null,null,0]
["",null,null,null,null,null,null,null,null,null,null,null,null,null,null,null,null,null,null,null,0]
[null,"Смеси для выпечки",{"$f":"SUM(C112:C119)","v":0},{"$f":"SUM(D112:D119)","v":0},0,0,0,0,0,0,0,0,0,0,0,0,0,0,0,0,0]
["1-84-004001","1-84-004001 Пудинг ванильный,40г",null,null,null,null,null,null,null,null,null,null,null,null,null,null,null,null,null,null,0]
["1-84-004002","1-84-004002 Пудинг шоколадный,50г",null,null,null,null,null,null,null,null,null,null,null,null,null,null,null,null,null,null,0]
["1-84-004003","1-84-004003 Пудинг сливочный,40г",null,null,null,null,null,null,null,null,null,null,null,null,null,null,null,null,null,null,0]
["1-84-004006","1-84-004006 Пудинг карамельный,40г",null,null,null,null,null,null,null,null,null,null,null,null,null,null,null,null,null,null,0]
["1-84-074001","1-84-074001 Пудинг ванильный,40гx5шт.",null,null,null,null,null,null,null,null,null,null,null,null,null,null,null,null,null,null,0]
["1-84-074003","1-84-074003 Пудинг сливочный,40гх5шт.",null,null,null,null,null,null,null,null,null,null,null,null,null,null,null,null,null,null,0]
["",null,null,null,null,null,null,null,null,null,null,null,null,null,null,null,null,null,null,null,0]
["",null,null,null,null,null,null,null,null,null,null,null,null,null,null,null,null,null,null,null,0]
["",null,null,null,null,null,null,null,null,null,null,null,null,null,null,null,null,null,null,null,0]
["",null,null,null,null,null,null,null,null,null,null,null,null,null,null,null,null,null,null,null,0]
[null,"Пудинги",{"$f":"SUM(C121:C130)","v":0},{"$f":"SUM(D121:D130)","v":0},0,0,0,0,0,0,0,0,0,0,0,0,0,0,0,0,0]
["1-84-007001","1-84-007001 Кисель \"Ягодник\" клубника,70г",null,null,null,null,null,null,null,null,null,null,null,null,null,null,null,null,null,null,0]
["1-84-007002","1-84-007002 Кисель \"Ягодник\" лесная ягода,70г",null,null,null,null,null,null,null,null,null,null,null,null,null,null,null,null,null,null,{"$f":"SumHid(C133:T133)","v":0}]
["1-84-007003","1-84-007003 Кисель \"Ягодник\" вишня,70г",null,null,null,null,null,null,null,null,null,null,null,null,null,null,null,null,null,null,0]
["1-84-007004","1-84-007004 Кисель \"Ягодник\" малина, 70г",null,null,null,null,null,null,null,null,null,null,null,null,null,null,null,null,null,null,0]
["1-84-077001","1-84-077001 Кисель \"Ягодник\" клубника,70г*5",null,null,null,null,null,null,null,null,null,null,null,null,null,null,null,null,null,null,0]
["1-84-077002","1-84-077002 Кисель \"Ягодник\" лесная ягода,70г*5",null,null,null,null,null,null,null,null,null,null,null,null,null,null,null,null,null,null,0]
["1-84-077003","1-84-077003 Кисель \"Ягодник\" вишня,70г*5",null,null,null,null,null,null,null,null,null,null,null,null,null,null,null,null,null,null,0]
["",null,null,null,null,null,null,null,null,null,null,null,null,null,null,null,null,null,null,null,0]
["",null,null,null,null,null,null,null,null,null,null,null,null,null,null,null,null,null,null,null,0]
["",null,null,null,null,null,null,null,null,null,null,null,null,null,null,null,null,null,null,null,0]
["",null,null,null,null,null,null,null,null,null,null,null,null,null,null,null,null,null,null,null,0]
[null,"Традиционные кисели",{"$f":"SUM(C132:C142)","v":0},{"$f":"SUM(D132:D142)","v":0},0,0,0,0,0,0,0,0,0,0,0,0,0,0,0,0,0]
["1-84-006001","1-84-006001 Кисель со вкусом вишни,30г",null,null,null,null,null,null,null,null,null,null,null,null,null,null,null,null,null,null,0]
["1-84-006002","1-84-006002 Кисель со вкусом малины,30г",null,null,null,null,null,null,null,null,null,null,null,null,null,null,null,null,null,null,0]
["1-84-006003","1-84-006003 Кисель со вкусом клубники,30г",null,null,null,null,null,null,null,null,null,null,null,null,null,null,null,null,null,null,0]
["1-84-076001","1-84-076001 Кисель со вкусом вишни,30гх5шт.",null,null,null,null,null,null,null,null,null,null,null,null,null,null,null,null,null,null,0]
["1-84-076002","1-84-076002 Кисель со вкусом малины,30гх5шт",null,null,null,null,null,null,null,null,null,null,null,null,null,null,null,null,null,null,0]
["1-84-076003","1-84-076003 Кисель со вкусом клубники,30гх5шт.",null,null,null,null,null,null,null,null,null,null,null,null,null,null,null,null,null,null,0]
["",null,null,null,null,null,null,null,null,null,null,null,null,null,null,null,null,null,null,null,0]
["",null,null,null,null,null,null,null,null,null,null,null,null,null,null,null,null,null,null,null,0]
["",null,null,null,null,null,null,null,null,null,null,null,null,null,null,null,null,null,null,null,0]
["",null,null,null,null,null,null,null,null,null,null,null,null,null,null,null,null,null,null,null,0]
[null,"Кисель \"Сладкий момент\"",{"$f":"SUM(C144:C153)","v":0},{"$f":"SUM(D144:D153)","v":0},0,0,0,0,0,0,0,0,0,0,0,0,0,0,0,0,0]
["1-84-005001","1-84-005001 Желе со вкусом вишни,45г",null,null,null,null,null,null,null,null,null,null,null,null,null,null,null,null,null,null,0]
["1-84-005002","1-84-005002 Желе со вкусом апельсина,45г",null,null,null,null,null,null,null,null,null,null,null,null,null,null,null,null,null,null,0]
["1-84-005003","1-84-005003 Желе со вкусом клубники,45г",null,null,null,null,null,null,null,null,null,null,null,null,null,null,null,null,null,null,0]
["1-84-005004","1-84-005004 Желе со вкусом малины,45г",null,null,null,null,null,null,null,null,null,null,null,null,null,null,null,null,null,null,0]
["1-84-005005","1-84-005005 Желе со вкусом лесной ягоды,45г",null,null,null,null,null,null,null,null,null,null,null,null,null,null,null,null,null,null,0]
["1-84-005006","1-84-005006 Желе со вкусом лимона,45г",null,null,null,null,null,null,null,null,null,null,null,null,null,null,null,null,null,null,0]
["1-84-075005","1-84-075005 Желе со вкусом лесной ягоды,45г*5",null,null,null,null,null,null,null,null,null,null,null,null,null,null,null,null,null,null,0]
["1-84-075006","1-84-075006 Желе со вкусом лимона, 45г*5",null,null,null,null,null,null,null,null,null,null,null,null,null,null,null,null,null,null,0]
["1-84-075101","1-84-075101 Желе со вкусом вишни,45гх5шт.",null,null,null,null,null,null,null,null,null,null,null,null,null,null,null,null,null,null,0]
["",null,null,null,null,null,null,null,null,null,null,null,null,null,null,null,null,null,null,null,0]
["",null,null,null,null,null,null,null,null,null,null,null,null,null,null,null,null,null,null,null,0]
["",null,null,null,null,null,null,null,null,null,null,null,null,null,null,null,null,null,null,null,0]
["",null,null,null,null,null,null,null,null,null,null,null,null,null,null,null,null,null,null,null,0]
["",null,null,null,null,null,null,null,null,null,null,null,null,null,null,null,null,null,null,null,0]
["",null,null,null,null,null,null,null,null,null,null,null,null,null,null,null,null,null,null,null,0]
["",null,null,null,null,null,null,null,null,null,null,null,null,null,null,null,null,null,null,null,0]
[null,"Желе",{"$f":"SUM(C155:C170)","v":0},{"$f":"SUM(D155:D170)","v":0},0,0,0,0,0,0,0,0,0,0,0,0,0,0,0,0,0]
["1-84-091144","1-84-091144 Соус десертный клубника, 200 гр.",null,null,null,null,null,null,null,null,null,null,null,null,null,null,null,null,null,null,0]
["1-84-091145","1-84-091145 Соус десертный, шоколад, 200 гр.",null,null,null,null,null,null,null,null,null,null,null,null,null,null,null,null,null,null,0]
["1-84-091146","1-84-091146 Соус десертный, тоффи 200 гр.",null,null,null,null,null,null,null,null,null,null,null,null,null,null,null,null,null,null,0]
["1-01-475100","1-01-475100 Мусс шоколадный",null,null,null,null,null,null,null,null,null,null,null,null,null,null,null,null,null,null,0]
["1-84-047200","1-84-047200 Крем Тирамису 70г",null,null,null,null,null,null,null,null,null,null,null,null,null,null,null,null,null,null,0]
["",null,null,null,null,null,null,null,null,null,null,null,null,null,null,null,null,null,null,null,0]
["",null,null,null,null,null,null,null,null,null,null,null,null,null,null,null,null,null,null,null,0]
["",null,null,null,null,null,null,null,null,null,null,null,null,null,null,null,null,null,null,null,0]
["",null,null,null,null,null,null,null,null,null,null,null,null,null,null,null,null,null,null,null,0]
[null,"Другие десерты",{"$f":"SUM(C172:C180)","v":0},{"$f":"SUM(D172:D180)","v":0},0,0,0,0,0,0,0,0,0,0,0,0,0,0,0,0,0]
["1-84-008003","1-84-008003 Консервант (бензоат натрия),7г",null,null,null,null,null,null,null,null,null,null,null,null,null,null,null,null,null,null,0]
["1-84-008001","1-84-008001 Желфикс 2:1 для консервирования,40г",null,null,null,null,null,null,null,null,null,null,null,null,null,null,null,null,null,null,0]
["1-84-008002","1-84-008002 Желфикс 1:1 для консервирования,20г",null,null,null,null,null,null,null,null,null,null,null,null,null,null,null,null,null,null,0]
["1-84-078001","1-84-078001 Желфикс 2:1, 40гх5шт.",null,null,null,null,null,null,null,null,null,null,null,null,null,null,null,null,null,null,0]
["1-84-078002","1-84-078002 Желфикс 1:1, 20гх5шт.",null,null,null,null,null,null,null,null,null,null,null,null,null,null,null,null,null,null,0]
[null,"Желфикс 3:1",null,null,null,null,null,null,null,null,null,null,null,null,null,null,null,null,null,null,0]
["1-66-100212","1-66-100212 Пикантфикс - кисло-сладкий,100г",null,null,null,null,null,null,null,null,null,null,null,null,null,null,null,null,null,null,0]
["1-66-100213","1-66-100213 Пикантфикс - острый,100г",null,null,null,null,null,null,null,null,null,null,null,null,null,null,null,null,null,null,0]
["1-66-100482","1-66-100482 Пикантфикс острый 100г*5",null,null,null,null,null,null,null,null,null,null,null,null,null,null,null,null,null,null,0]
["1-66-100496","1-66-100496 Пикантфикс кисло-сладкий 100г*5",null,null,null,null,null,null,null,null,null,null,null,null,null,null,null,null,null,null,0]
["1-84-008004","1-84-008004 Кислота лимонная пищевая,8г",null,null,null,null,null,null,null,null,null,null,null,null,null,null,null,null,null,null,0]
["1-84-008005","1-84-008005 Кислота лимонная пищевая 50г",null,null,null,null,null,null,null,null,null,null,null,null,null,null,null,null,null,null,0]
["1-84-078005","1-84-078005 Кислота лимонная пищевая, 50г. х 2 шт.",null,null,null,null,null,null,null,null,null,null,null,null,null,null,null,null,null,null,0]
["1-84-078104","1-84-078104 Кислота лимонная пищевая,8гх5шт.",null,null,null,null,null,null,null,null,null,null,null,null,null,null,null,null,null,null,0]
["",null,null,null,null,null,null,null,null,null,null,null,null,null,null,null,null,null,null,null,0]
["",null,null,null,null,null,null,null,null,null,null,null,null,null,null,null,null,null,null,null,{"$f":"SumHid(C197:T197)","v":0}]
["",null,null,null,null,null,null,null,null,null,null,null,null,null,null,null,null,null,null,null,0]
["",null,null,null,null,null,null,null,null,null,null,null,null,null,null,null,null,null,null,null,0]
[null,"Средства для консервирования",{"$f":"SUM(C182:C199)","v":0},{"$f":"SUM(D182:D199)","v":0},0,0,0,0,0,0,0,0,0,0,0,0,0,0,0,0,0]
["1-84-006420","1-84-006420 Мюсли фруктовые без сахара,375г",null,null,null,null,null,null,null,null,null,null,null,null,null,null,null,null,null,null,0]
["1-84-006421","1-84-006421 Мюсли шоколадные,375г",null,null,null,null,null,null,null,null,null,null,null,null,null,null,null,null,null,null,0]
["1-84-006424","1-84-006424 Мюсли хрустящие с шоколадом,375г",null,null,null,null,null,null,null,null,null,null,null,null,null,null,null,null,null,null,0]
["1-84-006446","1-84-006446 Мюсли хрустящие медовые,375г",null,null,null,null,null,null,null,null,null,null,null,null,null,null,null,null,null,null,0]
["",null,null,null,null,null,null,null,null,null,null,null,null,null,null,null,null,null,null,null,0]
["",null,null,null,null,null,null,null,null,null,null,null,null,null,null,null,null,null,null,null,0]
["",null,null,null,null,null,null,null,null,null,null,null,null,null,null,null,null,null,null,null,0]
["",null,null,null,null,null,null,null,null,null,null,null,null,null,null,null,null,null,null,null,0]
[null,"Мюсли Виталис",{"$f":"SUM(C201:C208)","v":0},{"$f":"SUM(D201:D208)","v":0},0,0,0,0,0,0,0,0,0,0,0,0,0,0,0,0,0]
[null,"Итого по ассортименту БАКАЛЕЯ",{"$f":"C16+C25+C35+C47+C77+C111+C120+C131+C143+C154+C171+C181+C200+C209","v":0},{"$f":"D16+D25+D35+D47+D77+D111+D120+D131+D143+D154+D171+D181+D200+D209","v":29},15,44,13,32,0,0,0,0,0,0,0,0,0,0,0,0,133]
["1-20-810200","1-20-810200 Пицца Ристоранте Сыр и Помидоры 355г",null,null,null,null,null,null,null,null,null,null,null,null,null,null,null,null,null,null,0]
["1-20-818900","1-20-818900 Пицца Ристоранте 4 вида сыра,340г",null,null,null,null,null,null,null,null,null,null,null,null,null,null,null,null,null,null,0]
["1-20-819000","1-20-819000 Пицца Ристоранте с салями,320г",null,null,null,null,null,null,null,null,null,null,null,null,null,null,null,null,null,null,0]
["1-20-819100","1-20-819100 Пицца Ристоранте с шампиньонами,365г",null,null,null,null,null,null,null,null,null,null,null,null,null,null,null,null,null,null,0]
["1-20-819200","1-20-819200 Пицца Ристоранте с ветчиной,330г",null,null,null,null,null,null,null,null,null,null,null,null,null,null,null,null,null,null,0]
["1-20-819500","1-20-819500 Пицца Ристоранте Специале,330г",null,null,null,null,null,null,null,null,null,null,null,null,null,null,null,null,null,null,0]
["1-20-819800","1-20-819800 Пицца Ристоранте Моццарелла,335г",null,null,null,null,null,null,null,null,null,null,null,null,null,null,null,null,null,null,0]
["1-20-819900","1-20-819900 Пицца Ристоранте вегетарианская,385г",null,null,null,null,null,null,null,null,null,null,null,null,null,null,null,null,null,null,0]
["1-20-820200","1-20-820200 Пицца Ристоранте Пепперони Салями 320г",null,null,null,null,null,null,null,null,null,null,null,null,null,null,null,null,null,null,0]
["1-20-820300","1-20-820300 Пицца Ристоранте Болоньезе 375г",null,null,null,null,null,null,null,null,null,null,null,null,null,null,null,null,null,null,0]
["1-20-834000","1-20-834000 Пицца Ристоранте Пиккола салями 280г",null,null,null,null,null,null,null,null,null,null,null,null,null,null,null,null,null,null,0]
["1-20-834200","1-20-834200 Пицца Ристоранте Пиккола Моцарелла,310г",null,null,null,null,null,null,null,null,null,null,null,null,null,null,null,null,null,null,0]
["1-20-836000","1-20-836000 Пицца Ристоранте креветки,360г",null,null,null,null,null,null,null,null,null,null,null,null,null,null,null,null,null,null,0]
["1-20-836100","1-20-836100 Пицца Ристоранте лосось/тунец/крев 355 г",null,null,null,null,null,null,null,null,null,null,null,null,null,null,null,null,null,null,0]
["",null,null,null,null,null,null,null,null,null,null,null,null,null,null,null,null,null,null,null,0]
["",null,null,null,null,null,null,null,null,null,null,null,null,null,null,null,null,null,null,null,0]
["",null,null,null,null,null,null,null,null,null,null,null,null,null,null,null,null,null,null,null,0]
["",null,null,null,null,null,null,null,null,null,null,null,null,null,null,null,null,null,null,null,0]
[null,"Ristorante",{"$f":"SUM(C211:C228)","v":0},{"$f":"SUM(D211:D228)","v":0},0,0,0,0,0,0,0,0,0,0,0,0,0,0,0,0,0]
["1-60-902117","1-60-902117 Пицца Guseppe  салями, INT, 380 гр.",null,null,null,null,null,null,null,null,null,null,null,null,null,null,null,null,null,null,0]
["1-60-902118","1-60-902118 Пицца Guseppe ветчина INT 410 г.",null,null,null,null,null,null,null,null,null,null,null,null,null,null,null,null,null,null,0]
["1-60-902119","1-60-902119 Пицца Guseppe 4 сыра INT, 335 гр.",null,null,null,null,null,null,null,null,null,null,null,null,null,null,null,null,null,null,0]
["1-60-902120","1-60-902120 Пицца Guseppe ветчина и грибы, INT 425 г",null,null,null,null,null,null,null,null,null,null,null,null,null,null,null,null,null,null,0]
["",null,null,null,null,null,null,null,null,null,null,null,null,null,null,null,null,null,null,null,0]
["",null,null,null,null,null,null,null,null,null,null,null,null,null,null,null,null,null,null,null,0]
["",null,null,null,null,null,null,null,null,null,null,null,null,null,null,null,null,null,null,null,0]
["",null,null,null,null,null,null,null,null,null,null,null,null,null,null,null,null,null,null,null,0]
[null,"Guseppe INT",{"$f":"SUM(C230:C237)","v":0},{"$f":"SUM(D230:D237)","v":0},0,0,0,0,0,0,0,0,0,0,0,0,0,0,0,0,0]
["1-60-902238","1-60-902238 Пицца Guseppe Ветчина на т/тесте, 320г",null,null,null,null,null,null,null,null,null,null,null,null,null,null,null,null,null,null,0]
["1-60-902239","1-60-902239 Пицца Guseppe 4 сыра на т/тесте, 305г",null,null,null,null,null,null,null,null,null,null,null,null,null,null,null,null,null,null,0]
["1-60-902240","1-60-902240 Пицца Guseppe Ассорти на т/тесте, 325г",null,null,null,null,null,null,null,null,null,null,null,null,null,null,null,null,null,null,0]
["",null,null,null,null,null,null,null,null,null,null,null,null,null,null,null,null,null,null,null,0]
[null,null,null,null,null,null,null,null,null,null,null,null,null,null,null,null,null,null,null,null,0]
[null,null,null,null,null,null,null,null,null,null,null,null,null,null,null,null,null,null,null,null,0]
[null,null,null,null,null,null,null,null,null,null,null,null,null,null,null,null,null,null,null,null,0]
[null,"Guseppe RUS",{"$f":"SUM(C239:C245)","v":0},{"$f":"SUM(D239:D245)","v":0},0,0,0,0,0,0,0,0,0,0,0,0,0,0,0,0,0]
[null,"Guseppe Mini Pizza Prosciutto",null,null,null,null,null,null,null,null,null,null,null,null,null,null,null,null,null,null,0]
[null,"Guseppe Mini Pizza Formaggi",null,null,null,null,null,null,null,null,null,null,null,null,null,null,null,null,null,null,0]
[null,null,null,null,null,null,null,null,null,null,null,null,null,null,null,null,null,null,null,null,0]
[null,null,null,null,null,null,null,null,null,null,null,null,null,null,null,null,null,null,null,null,0]
[null,null,null,null,null,null,null,null,null,null,null,null,null,null,null,null,null,null,null,null,0]
["",null,null,null,null,null,null,null,null,null,null,null,null,null,null,null,null,null,null,null,0]
[null,"Guseppe mini",{"$f":"SUM(C247:C252)","v":0},{"$f":"SUM(D247:D252)","v":0},0,0,0,0,0,0,0,0,0,0,0,0,0,0,0,0,0]
[null,"Итого по ассортименту ПИЦЦА",{"$f":"C229+C238+C246+C253","v":0},{"$f":"D229+D238+D246+D253","v":0},0,0,0,0,0,0,0,0,0,0,0,0,0,0,0,0,0]
[null,"ИТОГО:",{"$f":"C210+C254","v":0},{"$f":"D210+D254","v":29},15,44,13,32,0,0,0,0,0,0,0,0,0,0,0,0,133]